fUST/lending_fUST_20250207
["ID","MTS","AMOUNT","RATE_DAILY","PERIOD"]
[351950145,1738859441741,-500.0,0.00013835,2]
[351950147,1738859441750,-4004.27,0.00013835,2]
[351950149,1738859441760,-5859.67,0.00013835,2]
[351950151,1738859441770,-500.0,0.00013835,2]
[351950153,1738859441780,-500.0,0.00013835,2]
[351950155,1738859441790,-1045.95,0.00013835,2]
[351950157,1738859441799,-2089.89,0.00013835,2]
[351950159,1738859441809,-1492.26,0.00013835,2]
[351950160,1738859441819,-500.0,0.00013835,2]
[351950162,1738859441829,-500.0,0.00013835,2]
[351950164,1738859441839,-1127.13,0.00013835,2]
[351950166,1738859441849,-2000.18,0.00013835,2]
[351950168,1738859441859,-629.11,0.00013835,2]
[351950170,1738859441868,-675.52,0.00013835,2]
[351950172,1738859441878,-500.0,0.00013835,2]
[351950174,1738859441888,-12991.06,0.00013835,2]
[351950176,1738859441898,-500.0,0.00013835,2]
[351950178,1738859441907,-34276.27,0.00013835,2]
[351950180,1738859441917,-500.0,0.00013835,2]
[351950182,1738859441926,-500.0,0.00013835,2]
[351950184,1738859441936,-1305.16,0.00013835,2]
[351950186,1738859441946,-500.0,0.00013835,2]
[351950188,1738859441956,-1088.8,0.00013835,2]
[351950190,1738859441966,-1585.88,0.00013835,2]
[351950192,1738859441975,-2260.65,0.00013835,2]
[351950194,1738859441986,-668.47,0.00013835,2]
[351950196,1738859441995,-16203.2,0.00013835,2]
[351950198,1738859442004,-500.0,0.00013835,2]
[351950200,1738859442013,-2097.07,0.00013835,2]
[351950202,1738859442023,-1408.77,0.00013835,2]
[351950204,1738859442032,-736.21,0.00013835,2]
[351950206,1738859442041,-935.2,0.00013835,2]
[351950208,1738859442050,-500.0,0.00013835,2]
[351950209,1738859442060,-1295.62,0.00013835,2]
[351950211,1738859442070,-500.0,0.00013835,2]
[351950213,1738859442080,-641.51,0.00013835,2]
[351950215,1738859442091,-694.62,0.00013835,2]
[351950217,1738859442101,-1349.8,0.00013835,2]
[351950219,1738859442111,-2937.1,0.00013835,2]
[351950221,1738859442121,-175.07170259,0.00013835,2]
[351950223,1738859442132,-3435.29,0.00013835,2]
[351950225,1738859442142,-777.14,0.00013835,2]
[351950227,1738859442152,-500.0,0.00013835,2]
[351950229,1738859442162,-500.0,0.00013835,2]
[351950231,1738859442174,-500.0,0.00013835,2]
[351950233,1738859442186,-8293.84,0.00013835,2]
[351950235,1738859442200,-500.0,0.00013835,2]
[351950237,1738859442210,-1979.72,0.00013835,2]
[351950239,1738859442219,-604.25,0.00013835,2]
[351950241,1738859442228,-500.0,0.00013835,2]
[351950243,1738859442238,-3304.25,0.00013835,2]
[351950245,1738859442247,-500.0,0.00013835,2]
[351950247,1738859442257,-1729.62,0.00013835,2]
[351950249,1738859442267,-613.35,0.00013835,2]
[351950251,1738859442276,-500.0,0.00013835,2]
[351950253,1738859442285,-500.0,0.00013835,2]
[351950255,1738859442295,-1033.88,0.00013835,2]
[351950256,1738859442304,-1126.16,0.00013835,2]
[351950258,1738859442314,-773.44,0.00013835,2]
[351950260,1738859442325,-813.0,0.00013835,2]
[351950262,1738859442334,-1516.57,0.00013835,2]
[351950264,1738859442344,-500.0,0.00013835,2]
[351950266,1738859442353,-500.0,0.00013835,2]
[351950268,1738859442362,-500.0,0.00013835,2]
[351950270,1738859442371,-500.0,0.00013835,2]
[351950272,1738859442380,-500.0,0.00013835,2]
[351950274,1738859442390,-500.0,0.00013835,2]
[351950276,1738859442400,-2966.68,0.00013835,2]
[351950278,1738859442409,-957.91,0.00013835,2]
[351950280,1738859442419,-694.94,0.00013835,2]
[351950282,1738859442430,-500.0,0.00013835,2]
[351950284,1738859442439,-1042.16,0.00013835,2]
[351950286,1738859442449,-918.82,0.00013835,2]
[351950288,1738859442459,-306.0,0.0001389,2]
[351950290,1738859442470,-676.31163102,0.00013892,2]
[351950292,1738859442479,-153.0,0.000139,2]
[351950294,1738859442489,-431.4328151,0.000139,2]
[351950295,1738859442499,-154.4937493,0.000139,2]
[351950297,1738859442513,-595.88,0.00013972,2]
[351950299,1738859442523,-500.0,0.00013972,2]
[351950301,1738859442532,-500.0,0.00013972,2]
[351950303,1738859442543,-500.0,0.00013972,2]
[351950305,1738859442554,-890.05,0.00013972,2]
[351950307,1738859442563,-500.0,0.00013972,2]
[351950309,1738859442576,-500.0,0.00013972,2]
[351950311,1738859442586,-538.51,0.00013972,2]
[351950313,1738859442597,-500.0,0.00013972,2]
[351950315,1738859442607,-500.0,0.00013972,2]
[351950317,1738859442617,-500.0,0.00013972,2]
[351950319,1738859442627,-500.0,0.00013972,2]
[351950321,1738859442637,-500.0,0.00013972,2]
[351950323,1738859442647,-638.42,0.00013972,2]
[351950325,1738859442657,-500.0,0.00013972,2]
[351950327,1738859442666,-659.27,0.00013972,2]
[351950329,1738859442675,-500.0,0.00013972,2]
[351950331,1738859442684,-500.0,0.00013972,2]
[351950332,1738859442694,-528.82,0.00013972,2]
[351950334,1738859442704,-500.0,0.00013972,2]
[351950336,1738859442714,-500.0,0.00013972,2]
[351950338,1738859442723,-500.0,0.00013972,2]
[351950340,1738859442733,-1319.01,0.00013972,2]
[351950342,1738859442743,-902.8,0.00013972,2]
[351950344,1738859442753,-1346.32,0.00013972,2]
[351950346,1738859442763,-500.0,0.00013972,2]
[351950348,1738859442773,-860.17,0.00013972,2]
[351950350,1738859442783,-573.69,0.00013972,2]
[351950352,1738859442793,-500.0,0.00013972,2]
[351950354,1738859442803,-874.35,0.00013972,2]
[351950356,1738859442813,-1198.28,0.00013972,2]
[351950358,1738859442823,-929.35,0.00013972,2]
[351950360,1738859442833,-500.0,0.00013972,2]
[351950362,1738859442844,-517.08,0.00013972,2]
[351950364,1738859442855,-1156.7,0.00013972,2]
[351950366,1738859442866,-619.57,0.00013972,2]
[351950368,1738859442876,-1230.82,0.00013972,2]
[351950370,1738859442886,-500.0,0.00013972,2]
[351950372,1738859442896,-1683.13,0.00013972,2]
[351950374,1738859442906,-2878.6,0.00013972,2]
[351950375,1738859442916,-695.09,0.00013972,2]
[351950377,1738859442925,-6620.09,0.00013972,2]
[351950379,1738859442935,-592.88,0.00013972,2]
[351950381,1738859442945,-3865.66,0.00013972,2]
[351950383,1738859442955,-620.64,0.00013972,2]
[351950386,1738859442965,-500.0,0.00013972,2]
[351950388,1738859442975,-500.0,0.00013972,2]
[351950391,1738859442985,-500.0,0.00013972,2]
[351950393,1738859442995,-1289.83,0.00013972,2]
[351950395,1738859443006,-500.0,0.00013972,2]
[351950398,1738859443016,-4004.27,0.00013972,2]
[351950401,1738859443026,-5859.67,0.00013972,2]
[351950404,1738859443036,-500.0,0.00013972,2]
[351950407,1738859443047,-500.0,0.00013972,2]
[351950410,1738859443057,-1045.95,0.00013972,2]
[351950413,1738859443066,-2089.89,0.00013972,2]
[351950416,1738859443080,-1492.26,0.00013972,2]
[351950420,1738859443090,-500.0,0.00013972,2]
[351950424,1738859443100,-500.0,0.00013972,2]
[351950428,1738859443110,-1127.13,0.00013972,2]
[351950432,1738859443119,-2000.18,0.00013972,2]
[351950435,1738859443129,-629.11,0.00013972,2]
[351950438,1738859443139,-675.52,0.00013972,2]
[351950442,1738859443149,-500.0,0.00013972,2]
[351950446,1738859443158,-12991.06,0.00013972,2]
[351950450,1738859443168,-34276.27,0.00013972,2]
[351950453,1738859443177,-500.0,0.00013972,2]
[351950455,1738859443186,-1305.16,0.00013972,2]
[351950457,1738859443195,-500.0,0.00013972,2]
[351950458,1738859443206,-1088.8,0.00013972,2]
[351950460,1738859443215,-1585.88,0.00013972,2]
[351950462,1738859443225,-2260.65,0.00013972,2]
[351950464,1738859443235,-668.47,0.00013972,2]
[351950466,1738859443245,-16203.2,0.00013972,2]
[351950468,1738859443254,-500.0,0.00013972,2]
[351950470,1738859443264,-2097.07,0.00013972,2]
[351950472,1738859443274,-1408.77,0.00013972,2]
[351950474,1738859443284,-736.21,0.00013972,2]
[351950476,1738859443294,-935.2,0.00013972,2]
[351950478,1738859443303,-316.86012232,0.00013972,2]
[351950480,1738859443313,-1295.62,0.00013972,2]
[351950482,1738859443325,-500.0,0.00013972,2]
[351950484,1738859443335,-641.51,0.00013972,2]
[351950486,1738859443345,-694.62,0.00013972,2]
[351950488,1738859443355,-1349.8,0.00013972,2]
[351950490,1738859443364,-2937.1,0.00013972,2]
[351950492,1738859443374,-3435.29,0.00013972,2]
[351950494,1738859443384,-777.14,0.00013972,2]
[351950496,1738859443393,-500.0,0.00013972,2]
[351950498,1738859443403,-500.0,0.00013972,2]
[351950500,1738859443414,-500.0,0.00013972,2]
[351950502,1738859443424,-8293.84,0.00013972,2]
[351950504,1738859443433,-500.0,0.00013972,2]
[351950505,1738859443442,-1979.72,0.00013972,2]
[351950507,1738859443451,-604.25,0.00013972,2]
[351950509,1738859443461,-500.0,0.00013972,2]
[351950511,1738859443471,-3304.25,0.00013972,2]
[351950513,1738859443481,-500.0,0.00013972,2]
[351950515,1738859443492,-1729.62,0.00013972,2]
[351950517,1738859443502,-613.35,0.00013972,2]
[351950519,1738859443512,-500.0,0.00013972,2]
[351950521,1738859443522,-500.0,0.00013972,2]
[351950523,1738859443532,-1033.88,0.00013972,2]
[351950525,1738859443542,-1126.16,0.00013972,2]
[351950527,1738859443553,-773.44,0.00013972,2]
[351950529,1738859443563,-813.0,0.00013972,2]
[351950530,1738859443575,-1516.57,0.00013972,2]
[351950531,1738859443584,-500.0,0.00013972,2]
[351950532,1738859443594,-500.0,0.00013972,2]
[351950533,1738859443603,-500.0,0.00013972,2]
[351950534,1738859443612,-500.0,0.00013972,2]
[351950535,1738859443621,-500.0,0.00013972,2]
[351950536,1738859443630,-500.0,0.00013972,2]
[351950537,1738859443640,-2966.68,0.00013972,2]
[351950538,1738859443650,-957.91,0.00013972,2]
[351950539,1738859443659,-694.94,0.00013972,2]
[351950540,1738859443668,-500.0,0.00013972,2]
[351950542,1738859443678,-1042.16,0.00013972,2]
[351950543,1738859443687,-918.82,0.00013972,2]
[351950545,1738859443697,-166.66666666,0.00013973,2]
[351950546,1738859443706,-166.66666667,0.00013973,2]
[351950548,1738859443715,-400.0,0.00013973,2]
[351950551,1738859443725,-153.0,0.00014,2]
[351950553,1738859443736,-501.61219106,0.0001407,2]
[351950555,1738859443745,-2703.50726441,0.000141,2]
[351950557,1738859443755,-2703.50726441,0.000141,2]
[351950558,1738859443764,-2703.50726441,0.000141,2]
[351950559,1738859443774,-2703.50726441,0.000141,2]
[351950561,1738859443783,-2703.50726441,0.000141,2]
[351950563,1738859443792,-2703.50726441,0.000141,2]
[351950565,1738859443802,-2703.50726441,0.000141,2]
[351950567,1738859443812,-2703.50726441,0.000141,2]
[351950569,1738859443823,-2703.50726441,0.000141,2]
[351950571,1738859443833,-2703.50726441,0.000141,2]
[351950573,1738859443843,-2703.50726441,0.000141,2]
[351950575,1738859443853,-2703.50726441,0.000141,2]
[351950577,1738859443863,-2703.50726441,0.000141,2]
[351950579,1738859443874,-2703.50726441,0.000141,2]
[351950581,1738859443884,-2703.50726441,0.000141,2]
[351950583,1738859443894,-2703.50726441,0.000141,2]
[351950597,1738859444041,-2703.50726441,0.000141,2]
[351950599,1738859444051,-2703.50726441,0.000141,2]
[351950601,1738859444061,-2703.50726441,0.000141,2]
[351950603,1738859444074,-2703.5,0.000141,2]
[351950605,1738859444085,-215.7447597,0.000141,2]
[351950607,1738859444095,-215.7447597,0.000141,2]
[351950609,1738859444104,-3189.98707425,0.000141,2]
[351950611,1738859444114,-215.7447597,0.000141,2]
[351950613,1738859444122,-153.0,0.000141,2]
[351950615,1738859444132,-154.5349496,0.000141,2]
[351950617,1738859444141,-6308.18361695,0.000141,2]
[351950619,1738859444151,-6308.18361695,0.000141,2]
[351950621,1738859444161,-6308.18361695,0.000141,2]
[351950623,1738859444172,-6308.18361695,0.000141,2]
[351950625,1738859444183,-6308.18361695,0.000141,2]
[351950628,1738859444193,-6308.18361695,0.000141,2]
[351950630,1738859444203,-6308.18361695,0.000141,2]
[351950631,1738859444213,-6308.18361695,0.000141,2]
[351950633,1738859444223,-6308.18361695,0.000141,2]
[351950636,1738859444233,-6308.18361695,0.000141,2]
[351950637,1738859444242,-6308.18361695,0.000141,2]
[351950640,1738859444252,-6308.18361695,0.000141,2]
[351950641,1738859444262,-6308.18361695,0.000141,2]
[351950643,1738859444271,-6308.18361695,0.000141,2]
[351950645,1738859444280,-6308.18361695,0.000141,2]
[351950648,1738859444290,-6308.18361695,0.000141,2]
[351950649,1738859444299,-6308.18361695,0.000141,2]
[351950651,1738859444309,-6308.18361695,0.000141,2]
[351950653,1738859444319,-6308.18361695,0.000141,2]
[351950655,1738859444332,-6308.18,0.000141,2]
[351950657,1738859444341,-153.0,0.000141,2]
[351950659,1738859444351,-154.5349496,0.000141,2]
[351950661,1738859444361,-215.7447597,0.000141,2]
[351950663,1738859444371,-500.0,0.00014109,2]
[351950665,1738859444380,-500.0,0.00014109,2]
[351950668,1738859444390,-447.998,0.00014109,2]
[351950670,1738859444400,-500.0,0.00014109,2]
[351950672,1738859444410,-890.05,0.00014109,2]
[351950674,1738859444420,-500.0,0.00014109,2]
[351950676,1738859444430,-500.0,0.00014109,2]
[351950678,1738859444441,-538.51,0.00014109,2]
[351950680,1738859444451,-500.0,0.00014109,2]
[351950682,1738859444461,-500.0,0.00014109,2]
[351950684,1738859444471,-500.0,0.00014109,2]
[351950686,1738859444480,-500.0,0.00014109,2]
[351950688,1738859444490,-638.42,0.00014109,2]
[351950690,1738859444502,-500.0,0.00014109,2]
[351950692,1738859444512,-659.27,0.00014109,2]
[351950694,1738859444522,-500.0,0.00014109,2]
[351950696,1738859444532,-241.52566569,0.00014109,2]
[351950698,1738859444542,-528.82,0.00014109,2]
[351950700,1738859444552,-500.0,0.00014109,2]
[351950702,1738859444562,-477.24467584,0.00014109,2]
[351950704,1738859444573,-500.0,0.00014109,2]
[351950706,1738859444584,-1319.01,0.00014109,2]
[351950708,1738859444593,-902.8,0.00014109,2]
[351950710,1738859444603,-1346.32,0.00014109,2]
[351950712,1738859444613,-500.0,0.00014109,2]
[351950714,1738859444623,-860.17,0.00014109,2]
[351950716,1738859444632,-573.69,0.00014109,2]
[351950718,1738859444642,-500.0,0.00014109,2]
[351950720,1738859444652,-874.35,0.00014109,2]
[351950722,1738859444662,-1198.28,0.00014109,2]
[351950724,1738859444673,-929.35,0.00014109,2]
[351950725,1738859444682,-500.0,0.00014109,2]
[351950727,1738859444692,-517.08,0.00014109,2]
[351950729,1738859444702,-1156.7,0.00014109,2]
[351950731,1738859444711,-619.57,0.00014109,2]
[351950733,1738859444721,-1230.82,0.00014109,2]
[351950735,1738859444730,-1683.13,0.00014109,2]
[351950737,1738859444739,-500.0,0.00014109,2]
[351950739,1738859444749,-2878.6,0.00014109,2]
[351950741,1738859444759,-695.09,0.00014109,2]
[351950743,1738859444768,-6620.09,0.00014109,2]
[351950745,1738859444778,-592.88,0.00014109,2]
[351950747,1738859444787,-3865.66,0.00014109,2]
[351950749,1738859444797,-620.64,0.00014109,2]
[351950751,1738859444806,-347.21531262,0.00014109,2]
[351950753,1738859444816,-500.0,0.00014109,2]
[351950755,1738859444827,-500.0,0.00014109,2]
[351950757,1738859444836,-1289.83,0.00014109,2]
[351950759,1738859444846,-4004.27,0.00014109,2]
[351950761,1738859444855,-5859.67,0.00014109,2]
[351950763,1738859444865,-500.0,0.00014109,2]
[351950765,1738859444875,-500.0,0.00014109,2]
[351950767,1738859444885,-1045.95,0.00014109,2]
[351950769,1738859444894,-2089.89,0.00014109,2]
[351950771,1738859444903,-1492.26,0.00014109,2]
[351950773,1738859444913,-500.0,0.00014109,2]
[351950775,1738859444922,-500.0,0.00014109,2]
[351950777,1738859444932,-1127.13,0.00014109,2]
[351950778,1738859444941,-2000.18,0.00014109,2]
[351950780,1738859444951,-629.11,0.00014109,2]
[351950782,1738859444961,-675.52,0.00014109,2]
[351950785,1738859444972,-505.06596654,0.00014109,2]
[351950787,1738859444982,-12991.06,0.00014109,2]
[351950789,1738859444991,-34276.27,0.00014109,2]
[351950791,1738859445001,-500.0,0.00014109,2]
[351950792,1738859445011,-1305.16,0.00014109,2]
[351950795,1738859445021,-500.0,0.00014109,2]
[351950797,1738859445031,-1088.8,0.00014109,2]
[351950799,1738859445041,-1585.88,0.00014109,2]
[351950801,1738859445050,-2260.65,0.00014109,2]
[351950803,1738859445060,-668.47,0.00014109,2]
[351950804,1738859445072,-16203.2,0.00014109,2]
[351950807,1738859445087,-500.0,0.00014109,2]
[351950809,1738859445097,-2097.07,0.00014109,2]
[351950811,1738859445107,-1408.77,0.00014109,2]
[351950813,1738859445116,-736.21,0.00014109,2]
[351950815,1738859445126,-935.2,0.00014109,2]
[351950817,1738859445135,-1295.62,0.00014109,2]
[351950819,1738859445146,-500.0,0.00014109,2]
[351950821,1738859445155,-641.51,0.00014109,2]
[351950823,1738859445164,-694.62,0.00014109,2]
[351950825,1738859445174,-1349.8,0.00014109,2]
[351950827,1738859445183,-164.363906,0.00014109,2]
[351950829,1738859445193,-2937.1,0.00014109,2]
[351950831,1738859445203,-3435.29,0.00014109,2]
[351950833,1738859445212,-777.14,0.00014109,2]
[351950835,1738859445222,-500.0,0.00014109,2]
[351950837,1738859445232,-500.0,0.00014109,2]
[351950839,1738859445241,-500.0,0.00014109,2]
[351950841,1738859445251,-8293.84,0.00014109,2]
[351950843,1738859445260,-500.0,0.00014109,2]
[351950845,1738859445270,-604.25,0.00014109,2]
[351950847,1738859445279,-1979.72,0.00014109,2]
[351950849,1738859445288,-3304.25,0.00014109,2]
[351950851,1738859445297,-500.0,0.00014109,2]
[351950853,1738859445307,-1729.62,0.00014109,2]
[351950855,1738859445316,-613.35,0.00014109,2]
[351950857,1738859445327,-500.0,0.00014109,2]
[351950859,1738859445337,-500.0,0.00014109,2]
[351950861,1738859445346,-1033.88,0.00014109,2]
[351950863,1738859445355,-1126.16,0.00014109,2]
[351950865,1738859445364,-773.44,0.00014109,2]
[351950867,1738859445374,-813.0,0.00014109,2]
[351950869,1738859445383,-1516.57,0.00014109,2]
[351950871,1738859445393,-500.0,0.00014109,2]
[351950873,1738859445403,-481.37302079,0.00014109,2]
[351950875,1738859445413,-500.0,0.00014109,2]
[351950877,1738859445424,-500.0,0.00014109,2]
[351950879,1738859445433,-500.0,0.00014109,2]
[351950881,1738859445444,-500.0,0.00014109,2]
[351950883,1738859445454,-2966.68,0.00014109,2]
[351950885,1738859445464,-957.91,0.00014109,2]
[351950887,1738859445474,-694.94,0.00014109,2]
[351950889,1738859445484,-500.0,0.00014109,2]
[351950891,1738859445497,-1042.16,0.00014109,2]
[351950893,1738859445507,-918.82,0.00014109,2]
[351950895,1738859445517,-306.0,0.0001411,2]
[351950897,1738859445526,-1858.7846375,0.00014157,2]
[351950899,1738859445535,-2277.96,0.00014199,2]
[351950900,1738859445545,-226479.53414403,0.000142,5]
[351950925,1738859445775,-464.96799901,0.000142,5]
[351950928,1738859445791,-65.78039924,0.000142,5]
[351950929,1738859445803,-886.11960066,0.000142,5]
[351950961,1738859446077,-910.48804731,0.00013753,2]
[351950968,1738859446209,-800.0,0.0001315,2]
[351950970,1738859446220,-12352.01035186,0.00013753,2]
[351950972,1738859446230,-64902.07459612,0.000142,5]
[351950974,1738859446241,-108722.89383215,0.000142,5]
[351950976,1738859446254,-2207.17466836,0.000142,5]
[351950979,1738859446267,-306.0,0.000142,5]
[351950982,1738859446284,-4071.02683923,0.000142,5]
[351951024,1738859446697,-2480.4,0.000142,5]
[351954752,1738859491206,160.0,0.00018748,120]
[351954753,1738859550904,160.0,0.00017906,120]
[351954754,1738859611289,160.0,0.00018005,120]
[351954760,1738860333112,-162.5078211,0.00012176,2]
[351954761,1738860333135,-408.05890914,0.00012199,2]
[351954762,1738860333159,-206.8180615,0.00012299,2]
[351954763,1738860333182,-37.07660321,0.000129,2]
[351954764,1738860437100,-388.35949671,0.00012076,2]
[351954765,1738860443090,-13.33920205,0.00012076,2]
[351954766,1738860443112,-300.0,0.0001213,2]
[351954767,1738860443134,-509.28590366,0.00012131,2]
[351954768,1738860454101,-5282.33301888,0.00012131,2]
[351954769,1738860548149,-300.0,0.0001213,2]
[351954770,1738860548171,-18717.64089364,0.00012131,2]
[351954771,1738860551123,-357.19092136,0.00012131,2]
[351954827,1738860632802,-900.0,0.00012054,2]
[351954828,1738860632812,-33.54926246,0.00012131,2]
[351954829,1738860632822,-3249.59521958,0.0001295,2]
[351954830,1738860632831,-30117.83966733,0.00012951,2]
[351954831,1738860632840,-434.47761567,0.00013022,2]
[351954832,1738860632850,-1338.9639668,0.00013122,2]
[351954833,1738860633034,-535.56,0.000133,2]
[351954834,1738860633045,-435.4625161,0.00013378,2]
[351954835,1738860633055,-4998.20239018,0.000134,2]
[351954836,1738860633066,-153.0,0.000134,2]
[351954837,1738860633076,-154.5349496,0.000134,2]
[351954838,1738860633086,-215.7447597,0.000134,2]
[351954839,1738860633097,-153.0,0.000134,2]
[351954840,1738860633107,-215.7447597,0.000134,2]
[351954841,1738860633120,-309.0286989,0.000134,2]
[351954842,1738860633130,-215.7447597,0.000134,2]
[351954843,1738860633140,-247.8273438,0.000134,2]
[351954844,1738860633151,-900.0,0.00013424,2]
[351954845,1738860633161,-434.47761566,0.00013576,2]
[351954846,1738860633172,-220.19564891,0.00013598,2]
[351954847,1738860633182,-5000.0,0.000136,2]
[351954848,1738860633193,-215.7447597,0.000136,2]
[351954849,1738860633203,-215.7447597,0.000136,2]
[351954850,1738860633213,-262.4458947,0.00013652,2]
[351954851,1738860633223,-153.0,0.00013652,2]
[351954852,1738860633234,-7438.69753278,0.0001368,2]
[351954853,1738860633244,-500.0,0.00013697,2]
[351954854,1738860633253,-358.04093586,0.00013698,2]
[351954855,1738860633264,-500.0,0.00013698,2]
[351954856,1738860633275,-325.16079662,0.00013698,2]
[351954857,1738860633286,-500.0,0.00013698,2]
[351954858,1738860633298,-500.0,0.00013698,2]
[351954859,1738860633308,-500.0,0.00013698,2]
[351954860,1738860633318,-282.63919737,0.00013698,2]
[351954861,1738860633328,-500.0,0.00013698,2]
[351954862,1738860633337,-440.43738262,0.00013698,2]
[351954863,1738860633347,-500.0,0.00013698,2]
[351954864,1738860633360,-500.0,0.00013698,2]
[351954865,1738860633370,-424.45,0.00013698,2]
[351954866,1738860633379,-500.0,0.00013698,2]
[351954867,1738860633388,-874.35,0.00013698,2]
[351954868,1738860633399,-500.0,0.00013698,2]
[351954869,1738860633408,-500.0,0.00013698,2]
[351954870,1738860633418,-890.05,0.00013698,2]
[351954871,1738860633427,-592.88,0.00013698,2]
[351954872,1738860633437,-500.0,0.00013698,2]
[351954873,1738860633447,-500.0,0.00013698,2]
[351954874,1738860633456,-500.0,0.00013698,2]
[351954875,1738860633466,-515.94238992,0.00013698,2]
[351954876,1738860633475,-504.71400859,0.00013698,2]
[351954877,1738860633485,-500.0,0.00013698,2]
[351954878,1738860633495,-538.13432716,0.00013698,2]
[351954879,1738860633505,-500.0,0.00013698,2]
[351954880,1738860633515,-500.0,0.00013698,2]
[351954881,1738860633525,-503.05772199,0.00013698,2]
[351954882,1738860633534,-543.74,0.00013698,2]
[351954883,1738860633544,-638.42,0.00013698,2]
[351954884,1738860633553,-516.87827575,0.00013698,2]
[351954885,1738860633564,-277.04750064,0.00013698,2]
[351954886,1738860633574,-500.0,0.00013698,2]
[351954887,1738860633584,-464.2842984,0.00013698,2]
[351954888,1738860633593,-500.0,0.00013698,2]
[351954889,1738860633603,-500.0,0.00013698,2]
[351954890,1738860633615,-500.0,0.00013698,2]
[351954891,1738860633625,-500.0,0.00013698,2]
[351954892,1738860633635,-500.0,0.00013698,2]
[351954893,1738860633645,-500.0,0.00013698,2]
[351954894,1738860633655,-563.21,0.00013698,2]
[351954895,1738860633664,-528.82,0.00013698,2]
[351954896,1738860633674,-500.0,0.00013698,2]
[351954897,1738860633683,-659.27,0.00013698,2]
[351954898,1738860633693,-500.0,0.00013698,2]
[351954899,1738860633702,-500.0,0.00013698,2]
[351954900,1738860633712,-500.0,0.00013698,2]
[351954901,1738860633721,-500.0,0.00013698,2]
[351954902,1738860633731,-500.0,0.00013698,2]
[351954903,1738860633740,-902.8,0.00013698,2]
[351954904,1738860633750,-500.0,0.00013698,2]
[351954905,1738860633759,-860.17,0.00013698,2]
[351954906,1738860633769,-668.47,0.00013698,2]
[351954907,1738860633778,-1319.01,0.00013698,2]
[351954908,1738860633788,-500.0,0.00013698,2]
[351954909,1738860633798,-500.0,0.00013698,2]
[351954910,1738860633807,-1346.32,0.00013698,2]
[351954911,1738860633817,-500.0,0.00013698,2]
[351954912,1738860633827,-500.0,0.00013698,2]
[351954913,1738860633837,-390.16312571,0.00013698,2]
[351954914,1738860633846,-573.69,0.00013698,2]
[351954915,1738860633856,-500.0,0.00013698,2]
[351954916,1738860633867,-500.0,0.00013698,2]
[351954917,1738860633877,-500.0,0.00013698,2]
[351954918,1738860633890,-610.99,0.00013698,2]
[351954919,1738860633899,-1198.28,0.00013698,2]
[351954920,1738860633909,-500.0,0.00013698,2]
[351954921,1738860633918,-929.35,0.00013698,2]
[351954922,1738860633928,-500.0,0.00013698,2]
[351954923,1738860633938,-605.19151781,0.00013698,2]
[351954924,1738860633948,-500.0,0.00013698,2]
[351954925,1738860633958,-500.0,0.00013698,2]
[351954926,1738860633968,-500.0,0.00013698,2]
[351954927,1738860633979,-500.0,0.00013698,2]
[351954928,1738860633990,-500.0,0.00013698,2]